bitfinex/quotes_BTCUSD_20240731
["timestamp","ask_amount","ask_price","bid_price","bid_amount"]
[1722409908899,0.08775249,66524.0,66523.0,0.45097]
[1722409909450,0.02344,66524.0,66523.0,0.45097]
[1722409909990,0.09075249,66524.0,66523.0,0.45097]
[1722409910189,0.09075249,66524.0,66523.0,0.150323]
[1722409910348,0.02244,66524.0,66523.0,0.150323]
[1722409910725,0.02044,66524.0,66523.0,0.150323]
[1722409911114,0.02344,66524.0,66523.0,0.150323]
[1722409911307,0.09073685,66524.0,66523.0,0.150323]
[1722409912878,0.02344,66524.0,66523.0,0.150323]
[1722409913300,0.09073685,66524.0,66523.0,0.150323]
[1722409913525,0.02344,66524.0,66523.0,0.150323]
[1722409913917,0.06827862,66524.0,66523.0,0.150323]
[1722409914260,0.26375019,66524.0,66515.0,0.0652]
[1722409914466,0.07534716,66517.0,66515.0,0.215541]
[1722409914668,0.023,66516.0,66515.0,0.516226]
[1722409914819,0.023,66516.0,66515.0,0.215542]
[1722409915045,0.023,66516.0,66515.0,0.0652]
[1722409915252,0.023,66516.0,66515.0,0.215542]
[1722409915700,0.023,66516.0,66515.0,0.218542]
[1722409916099,0.023,66516.0,66515.0,0.215542]
[1722409916640,0.023,66516.0,66515.0,0.516226]
[1722409916848,0.023,66518.0,66517.0,0.451012]
[1722409917058,0.023,66518.0,66517.0,0.896087]
[1722409917293,0.023,66522.0,66521.0,0.150328]
[1722409917464,0.023,66523.0,66522.0,0.150326]
[1722409918354,0.023,66523.0,66521.0,0.150327]
[1722409918570,0.023,66523.0,66521.0,0.151327]
[1722409918571,0.009,66522.0,66521.0,0.151327]
[1722409918780,0.032,66522.0,66521.0,0.451983]
[1722409918960,0.032,66522.0,66521.0,0.813139]
[1722409919168,0.032,66522.0,66521.0,0.887739]
[1722409919169,0.023,66522.0,66521.0,0.887739]
[1722409919308,0.00084,66524.0,66523.0,0.45097]
[1722409920116,0.00084,66524.0,66523.0,0.751617]
[1722409921121,0.10745628,66524.0,66523.0,0.751617]
[1722409921407,0.13045628,66524.0,66523.0,0.45097]
[1722409921963,0.14145628,66524.0,66523.0,0.151323]
[1722409922338,0.15045628,66524.0,66523.0,0.151323]
[1722409922454,0.15045628,66524.0,66523.0,0.45197]
[1722409923878,0.15045733,66524.0,66523.0,0.45197]
[1722409924568,0.15045733,66524.0,66523.0,0.752617]
[1722409925735,0.15045733,66524.0,66523.0,0.45197]
[1722409926345,0.15045733,66524.0,66523.0,0.151323]
[1722409926562,0.33345458,66524.0,66523.0,0.001]
[1722409926769,0.35585964,66524.0,66523.0,0.001]
[1722409926971,0.28864445,66524.0,66523.0,0.001]
[1722409927425,0.288157,66524.0,66523.0,0.001]
[1722409927793,0.33297945,66524.0,66523.0,0.001]
[1722409927996,0.288157,66524.0,66523.0,0.001]
[1722409928196,0.35538734,66524.0,66523.0,0.001]
[1722409928792,0.288157,66524.0,66523.0,0.001]
[1722409929198,0.438478,66524.0,66523.0,0.001]
[1722409929409,0.55052857,66524.0,66523.0,0.001]
[1722409929618,0.40020757,66524.0,66523.0,0.001]
[1722409930023,0.288157,66524.0,66523.0,0.001]
[1722409930256,0.40030512,66524.0,66523.0,0.001]
[1722409930503,0.288157,66524.0,66523.0,0.001]
[1722409931080,0.438618,66524.0,66523.0,0.001]
[1722409931289,0.288297,66524.0,66523.0,0.001]
[1722409931686,0.32011049,66524.0,66523.0,0.001]
[1722409932053,0.28829705,66524.0,66523.0,0.001]
[1722409932656,0.40056581,66524.0,66523.0,0.45197]
[1722409932835,0.37811096,66524.0,66523.0,0.45197]
[1722409933227,0.37811096,66524.0,66523.0,0.752617]
[1722409933228,0.37727096,66524.0,66523.0,0.752617]
[1722409933428,0.21252314,66524.0,66523.0,0.752617]
[1722409934478,0.10620212,66524.0,66523.0,0.752617]
[1722409934682,0.03884,66524.0,66523.0,0.752617]
[1722409934884,0.13407482,66524.0,66523.0,0.751617]
[1722409935070,0.12507482,66524.0,66523.0,0.751617]
[1722409935273,0.14307482,66524.0,66523.0,0.45197]
[1722409935487,0.23294449,66524.0,66523.0,0.45197]
[1722409935809,0.22494449,66524.0,66523.0,0.45197]
[1722409936127,0.23194449,66524.0,66523.0,0.45197]
[1722409936485,0.14407482,66524.0,66523.0,0.45197]
[1722409936687,0.13407482,66524.0,66523.0,0.45097]
[1722409937011,0.14307482,66524.0,66523.0,0.45197]
[1722409937510,0.13407482,66524.0,66523.0,0.45097]
[1722409937715,0.13807482,66524.0,66523.0,0.45097]
[1722409938119,0.03184,66524.0,66523.0,0.45097]
[1722409938314,0.13830822,66524.0,66523.0,0.45097]
[1722409939080,0.13830822,66524.0,66523.0,0.59047]
[1722409939281,0.13830822,66524.0,66523.0,0.891117]
[1722409939711,0.12930822,66524.0,66523.0,0.891117]
[1722409939947,0.12530822,66524.0,66523.0,0.891117]
[1722409940146,0.12930822,66524.0,66523.0,0.891117]
[1722409940652,0.12630822,66524.0,66523.0,1.191764]
[1722409940858,0.12630822,66524.0,66523.0,1.506964]
[1722409940859,0.10746822,66524.0,66523.0,1.506964]
[1722409941066,0.10946822,66524.0,66523.0,1.506964]
[1722409941502,0.10846822,66524.0,66523.0,1.506964]
[1722409941902,0.10858545,66524.0,66523.0,1.506964]
[1722409942909,0.10858545,66524.0,66523.0,1.3005794]
[1722409943316,0.24382788,66524.0,66523.0,1.3005794]
[1722409943473,0.57566811,66524.0,66523.0,1.3005794]
[1722409943876,0.2439016,66524.0,66523.0,1.3005794]
[1722409944084,0.002,66524.0,66523.0,1.3005794]
[1722409944464,0.002,66524.0,66523.0,1.8164264]
[1722409944663,0.11474121,66524.0,66523.0,1.8164264]
[1722409945050,0.002,66524.0,66523.0,1.8164264]
[1722409945254,0.09219289,66524.0,66523.0,1.8164264]
[1722409945486,0.002,66524.0,66523.0,1.8164264]
[1722409945904,0.11471552,66524.0,66523.0,1.8164264]
[1722409946331,0.002,66524.0,66523.0,1.8164264]
[1722409946555,0.11471552,66524.0,66523.0,1.8164264]
[1722409946760,0.11383717,66524.0,66523.0,1.8164264]
[1722409947388,0.00112165,66524.0,66523.0,1.8164264]
[1722409947860,0.11383717,66524.0,66523.0,1.8164264]
[1722409948488,0.00112165,66524.0,66523.0,1.8164264]
[1722409949993,0.00069688,66524.0,66523.0,1.8164264]
[1722409951483,0.09080592,66524.0,66523.0,1.8164264]
[1722409952495,0.09080033,66524.0,66523.0,1.8164264]
[1722409953430,0.00069688,66524.0,66523.0,1.99705944]
[1722409954459,0.00069688,66524.0,66523.0,1.99905944]
[1722409958191,0.00069688,66524.0,66523.0,1.97705944]
[1722409966321,0.00069688,66524.0,66523.0,1.76185944]
[1722409966521,0.00069688,66524.0,66523.0,1.97705944]
[1722409967208,0.00069688,66524.0,66523.0,1.84785944]
[1722409967426,0.00069688,66524.0,66523.0,1.86785944]
[1722409967641,0.00069688,66524.0,66523.0,1.84785944]
[1722409967840,0.00069688,66524.0,66523.0,1.86785944]
[1722409968549,0.00069688,66524.0,66523.0,1.86985944]
[1722409971129,0.00069688,66524.0,66523.0,1.86785944]
[1722409971246,0.00069688,66524.0,66523.0,1.85785944]
[1722409971451,0.00069688,66524.0,66523.0,1.86785944]
[1722409975100,0.00069688,66524.0,66523.0,1.86985944]
[1722409978491,0.00069688,66524.0,66523.0,2.25272559]
[1722409978926,8.8e-07,66524.0,66523.0,2.64375259]
[1722409981065,8.8e-07,66524.0,66523.0,2.55775259]
[1722409981270,8.8e-07,66524.0,66523.0,2.64375259]
[1722409983083,8.8e-07,66524.0,66523.0,2.34310559]
[1722409983288,8.8e-07,66524.0,66523.0,2.34110559]
[1722409983496,8.8e-07,66524.0,66523.0,2.32110559]
[1722409984675,8.8e-07,66524.0,66523.0,2.32096092]
[1722409984862,8.8e-07,66524.0,66523.0,2.34296092]
[1722409985407,8.8e-07,66524.0,66523.0,2.34096092]
[1722409987425,8.8e-07,66524.0,66523.0,2.34296092]
[1722409988215,8.8e-07,66524.0,66523.0,2.3206132]
[1722409988416,8.8e-07,66524.0,66523.0,2.25888644]
[1722409988615,8.8e-07,66524.0,66523.0,2.26088644]
[1722409991696,8.8e-07,66524.0,66523.0,1.76185944]
[1722409991908,8.8e-07,66524.0,66523.0,1.84785944]
[1722409992537,0.09019665,66524.0,66523.0,1.84785944]
[1722409992892,0.09019665,66524.0,66523.0,1.31171244]
[1722409993098,0.09019665,66524.0,66523.0,1.1610794]
[1722409993099,0.11274559,66524.0,66523.0,1.1610794]
[1722409993510,8.8e-07,66524.0,66523.0,1.1610794]
[1722410007923,8.8e-07,66524.0,66523.0,1.2387794]
[1722410008193,8.8e-07,66524.0,66523.0,1.3045794]
[1722410010694,8.8e-07,66524.0,66523.0,1.3905794]
[1722410013863,0.03002932,66524.0,66523.0,1.95542404]
[1722410014112,0.15215211,66541.0,66523.0,1.95542404]
[1722410014113,0.04507576,66532.0,66531.0,0.032]
[1722410014284,0.06761485,66534.0,66531.0,0.032]
[1722410014285,0.04507576,66534.0,66533.0,0.450903]
[1722410014494,0.04507576,66536.0,66535.0,0.450889]
[1722410014700,0.0806,66547.0,66536.0,0.751472]
[1722410014701,0.06761485,66537.0,66536.0,0.751472]
[1722410014890,0.06761485,66538.0,66537.0,0.450876]
[1722410015093,0.0806,66547.0,66546.0,0.150271]
[1722410015316,0.18579358,66547.0,66546.0,0.450814]
[1722410015490,0.18579358,66547.0,66546.0,0.751357]
[1722410016643,0.18592804,66547.0,66546.0,0.751357]
[1722410016849,0.18592804,66547.0,66546.0,1.0519]
[1722410017052,0.18592804,66547.0,66546.0,1.282]
[1722410017053,0.10532804,66547.0,66546.0,1.282]
[1722410017323,0.0801,66555.0,66552.0,0.150258]
[1722410017324,0.13516674,66553.0,66552.0,0.150258]
[1722410017526,0.10568324,66553.0,66552.0,1.051806]
[1722410017830,0.10568271,66553.0,66548.0,0.086]
[1722410018032,0.10568272,66552.0,66551.0,0.450781]
[1722410018182,0.21526674,66555.0,66554.0,0.300507]
[1722410018387,0.18578289,66555.0,66554.0,0.751267]
[1722410018605,0.39629679,66555.0,66554.0,0.150253]
[1722410018825,0.39629679,66555.0,66552.0,0.001]
[1722410018826,0.72802888,66555.0,66552.0,0.001]
[1722410019163,0.24078917,66554.0,66553.0,0.150256]
[1722410019569,0.24078917,66554.0,66552.0,0.001]
[1722410019570,0.48868917,66554.0,66552.0,0.001]
[1722410019685,0.73069335,66553.0,66552.0,0.001]
[1722410019887,0.26377486,66553.0,66552.0,0.150258]
[1722410020141,0.73072966,66553.0,66552.0,0.150258]
[1722410020482,0.26379783,66553.0,66552.0,0.150258]
[1722410020916,0.10571548,66553.0,66552.0,0.75229]
[1722410021364,0.10571548,66553.0,66552.0,0.75329]
[1722410021570,0.1389,66554.0,66553.0,0.75128]
[1722410021769,0.24462412,66554.0,66553.0,0.75128]
[1722410021978,0.10572412,66554.0,66553.0,0.75128]
[1722410022204,0.27988235,66557.0,66556.0,0.150249]
[1722410022351,0.38560638,66557.0,66556.0,0.450747]
[1722410022579,0.25052403,66557.0,66556.0,0.450747]
[1722410022784,0.25052403,66557.0,66556.0,0.751245]
[1722410023634,0.25052403,66557.0,66556.0,0.450747]
[1722410023635,0.1448,66557.0,66556.0,0.450747]
[1722410023761,0.25037728,66557.0,66556.0,0.450747]
[1722410023960,0.8522914,66557.0,66556.0,0.450747]
[1722410024351,0.38540111,66557.0,66556.0,0.450747]
[1722410024556,0.47828153,66557.0,66556.0,0.451747]
[1722410024971,0.58360048,66557.0,66556.0,0.002]
[1722410025172,0.25011895,66557.0,66556.0,0.152249]
[1722410025378,0.38514278,66557.0,66556.0,0.152249]
[1722410025574,0.25011895,66557.0,66556.0,0.452747]
[1722410027286,0.10454518,66557.0,66556.0,0.302498]
[1722410027681,0.23952724,66557.0,66556.0,0.753245]
[1722410027883,0.0658,66559.0,66557.0,0.450741]
[1722410027884,0.13498206,66558.0,66557.0,0.450741]
[1722410028103,0.0658,66559.0,66558.0,0.751222]
[1722410028104,0.20078206,66559.0,66558.0,0.751222]
[1722410028312,0.30555891,66559.0,66558.0,0.450733]
[1722410028510,0.97088103,66559.0,66558.0,0.450733]
[1722410028741,0.97088103,66559.0,66558.0,0.150244]
[1722410029569,1.10581267,66559.0,66558.0,0.450733]
[1722410029768,0.63894448,66559.0,66558.0,0.450733]
[1722410030179,0.30546819,66559.0,66558.0,0.450733]
[1722410030292,0.63740508,66559.0,66556.0,0.300498]
[1722410030499,0.38991512,66558.0,66553.0,0.150254]
[1722410030790,0.38991512,66558.0,66553.0,0.150256]
[1722410030791,0.21463357,66554.0,66553.0,0.150256]
[1722410030997,0.31937957,66554.0,66553.0,0.150256]
[1722410031197,0.31937957,66554.0,66553.0,0.550768]
[1722410031424,0.31937957,66554.0,66553.0,0.1]
[1722410031630,0.31937957,66554.0,66553.0,0.250256]
[1722410031831,0.23967957,66554.0,66553.0,0.551768]
[1722410032027,0.023,66557.0,66556.0,0.150249]
[1722410032028,0.15792852,66557.0,66556.0,0.150249]
[1722410032228,0.26281598,66557.0,66556.0,0.150249]
[1722410032429,0.023,66557.0,66556.0,0.450747]
[1722410032665,0.023,66558.0,66557.0,0.150245]
[1722410033023,0.12751434,66558.0,66557.0,0.450739]
[1722410033248,0.023,66558.0,66557.0,0.450739]
[1722410033449,0.13492852,66560.0,66559.0,0.450727]
[1722410033609,0.023,66560.0,66559.0,0.450727]
[1722410034013,0.21463304,66565.0,66554.0,0.300505]
[1722410034014,0.35645791,66562.0,66561.0,0.149238]
[1722410034260,0.35645791,66562.0,66561.0,0.449714]
[1722410034460,0.35645651,66562.0,66561.0,0.449714]
[1722410035217,0.35645651,66562.0,66561.0,0.450714]
[1722410035892,0.35645651,66562.0,66561.0,0.451714]
[1722410037057,0.35645651,66562.0,66561.0,0.002]
[1722410037268,0.35645651,66562.0,66561.0,0.152238]
[1722410037477,0.46050077,66562.0,66561.0,0.152238]
[1722410037938,0.35645623,66562.0,66561.0,0.152238]
[1722410038136,0.46022602,66562.0,66561.0,0.152238]
[1722410040837,0.12676979,66562.0,66561.0,0.152238]
[1722410041037,0.12676979,66562.0,66561.0,0.002]
[1722410041573,0.023,66562.0,66561.0,0.002]
[1722410041805,0.12692892,66562.0,66561.0,0.152238]
[1722410043210,0.26170234,66562.0,66561.0,0.152238]
[1722410045140,0.023,66562.0,66561.0,0.152238]
[1722410045465,0.064,66565.0,66561.0,0.152238]
[1722410045466,0.15778821,66564.0,66562.0,0.150235]
[1722410045666,0.33346573,66563.0,66562.0,0.150235]
[1722410045898,0.46086944,66563.0,66562.0,0.150235]
[1722410046100,0.46086944,66563.0,66562.0,0.14991252]
[1722410047964,0.46086944,66563.0,66562.0,0.15091252]
[1722410048310,0.46086944,66563.0,66562.0,0.45138352]
[1722410048656,0.46086944,66563.0,66562.0,0.14991252]
[1722410048858,0.46094527,66563.0,66562.0,0.15091252]
[1722410049073,0.46094527,66563.0,66562.0,0.15191252]
[1722410051133,0.46094527,66563.0,66562.0,0.45238352]
[1722410052128,0.46094487,66563.0,66562.0,0.45238352]
[1722410052529,0.59580334,66563.0,66562.0,0.45238352]
[1722410053573,0.26234576,66563.0,66562.0,0.45238352]
[1722410053834,0.72918637,66563.0,66562.0,0.45238352]
[1722410054092,1.06264395,66563.0,66562.0,0.45238352]
[1722410054440,0.92776497,66563.0,66562.0,0.45238352]
[1722410055427,0.92776497,66563.0,66562.0,0.15191252]
[1722410055826,0.92776497,66563.0,66562.0,0.002]
[1722410056395,0.92776497,66563.0,66562.0,0.152235]
[1722410056396,0.92737034,66563.0,66562.0,0.152235]
[1722410057561,1.07924924,66563.0,66562.0,0.152235]
[1722410058344,0.92737034,66563.0,66562.0,0.152235]
[1722410058547,0.92737034,66563.0,66562.0,0.452706]
[1722410058749,0.92737034,66563.0,66562.0,0.152235]
[1722410059555,0.92736973,66563.0,66562.0,0.452706]
[1722410059758,0.92736973,66563.0,66562.0,0.152235]
[1722410060598,0.92736973,66563.0,66562.0,0.151235]
[1722410061247,0.92736973,66563.0,66562.0,0.152235]
[1722410062250,0.92736973,66563.0,66558.0,0.366088]
[1722410062457,0.086,66560.0,66559.0,0.250241]
[1722410062665,0.52352459,66560.0,66559.0,0.550726]
[1722410062839,0.99036973,66560.0,66559.0,0.550726]
[1722410063094,0.99016671,66560.0,66559.0,0.550726]
[1722410063902,0.90416671,66560.0,66559.0,0.550726]
[1722410064114,0.90416671,66560.0,66559.0,0.612326]
[1722410064733,0.90416671,66560.0,66559.0,0.613326]
[1722410065137,0.90416671,66560.0,66559.0,0.612326]
[1722410066526,0.023,66563.0,66561.0,0.150236]
[1722410066704,0.90424346,66562.0,66561.0,0.450712]
[1722410066911,0.92724346,66562.0,66561.0,0.450712]
[1722410067122,0.92724346,66562.0,66561.0,0.150236]
[1722410068769,1.01324346,66562.0,66561.0,0.150236]
[1722410069271,1.01324346,66562.0,66561.0,0.450712]
[1722410069480,1.01324346,66562.0,66561.0,0.150236]
[1722410069883,0.109,66562.0,66561.0,0.150236]
[1722410070086,0.54628881,66562.0,66561.0,0.150236]
[1722410070502,0.54628881,66562.0,66559.0,0.250241]
[1722410070711,0.54628881,66562.0,66560.0,0.15024]
[1722410070712,0.9041296,66561.0,66560.0,0.15024]
[1722410071080,0.9041296,66561.0,66559.0,0.250241]
[1722410071285,0.90404287,66560.0,66559.0,0.550727]
[1722410072102,0.57058262,66560.0,66559.0,0.550727]
[1722410073057,0.57058262,66560.0,66559.0,0.250242]
[1722410073290,0.109,66562.0,66559.0,0.250242]
[1722410073492,0.5705621,66561.0,66559.0,0.250242]
[1722410073695,0.5705621,66560.0,66559.0,0.250242]
[1722410074856,0.5705621,66560.0,66559.0,0.1]
[1722410075441,0.5705621,66560.0,66559.0,0.250242]
[1722410076824,0.109,66562.0,66559.0,0.250242]
[1722410077018,0.57034204,66561.0,66559.0,0.250242]
[1722410077224,0.57034204,66560.0,66559.0,0.250242]
[1722410079740,0.57034204,66560.0,66559.0,0.1]
[1722410079912,0.57034204,66560.0,66558.0,0.1]
[1722410080148,0.259236,66562.0,66558.0,0.150244]
[1722410080391,0.57035315,66561.0,66559.0,0.1]
[1722410080531,0.57035315,66560.0,66559.0,0.1]
[1722410081363,0.59335315,66560.0,66559.0,0.1]
[1722410081560,0.59335315,66560.0,66557.0,0.0773]
[1722410081719,0.086,66558.0,66557.0,0.0773]
[1722410081921,0.65635315,66558.0,66557.0,0.0773]
[1722410082772,0.65635315,66558.0,66557.0,0.227546]
[1722410083061,0.65635315,66558.0,66557.0,0.327546]
[1722410083208,0.57035315,66558.0,66557.0,0.327546]
[1722410083602,0.57027933,66558.0,66557.0,0.327546]
[1722410086635,0.57027933,66558.0,66557.0,0.62804]
[1722410087044,0.086,66561.0,66558.0,0.150244]
[1722410087207,0.57023464,66560.0,66559.0,0.1]
[1722410090403,0.086,66561.0,66559.0,0.1]
[1722410090572,0.5703702,66560.0,66559.0,0.1]
[1722410090771,0.5703702,66560.0,66559.0,0.250242]
[1722410094104,0.57037017,66560.0,66559.0,0.550727]
[1722410095241,0.57037017,66560.0,66559.0,0.250242]
[1722410097454,0.57076992,66560.0,66559.0,0.250242]
[1722410097593,1.23662986,66560.0,66559.0,0.250242]
[1722410097963,0.57076992,66560.0,66559.0,0.550727]
[1722410098172,1.23662986,66560.0,66559.0,0.550727]
[1722410098375,0.57076992,66560.0,66559.0,0.550727]
[1722410098912,0.57076992,66560.0,66559.0,0.250242]
[1722410099486,0.46768845,66562.0,66560.0,0.15024]
[1722410099684,1.25820723,66561.0,66560.0,0.15024]
[1722410100043,0.59415115,66561.0,66560.0,0.15024]
[1722410100242,0.59415115,66561.0,66560.0,0.45072]
[1722410100409,1.25820723,66561.0,66560.0,0.45072]
[1722410100612,0.59410017,66561.0,66560.0,0.45072]
[1722410100805,0.12724612,66561.0,66560.0,0.15024]
[1722410101011,0.59410017,66561.0,66560.0,0.15024]
[1722410102544,0.59410017,66561.0,66559.0,0.1]
[1722410102718,0.57110017,66560.0,66559.0,0.150241]
[1722410102923,0.57110017,66560.0,66559.0,0.250241]
[1722410103139,0.57110017,66560.0,66559.0,0.550726]
[1722410103971,0.46685405,66560.0,66559.0,0.550726]
[1722410104171,0.00083,66562.0,66560.0,0.15024]
[1722410104401,0.57642721,66561.0,66560.0,0.15024]
[1722410107217,0.57642721,66561.0,66560.0,1.19448]
[1722410107419,0.57642721,66561.0,66560.0,1.29448]
[1722410107622,0.1532165,66562.0,66561.0,1.051666]
[1722410107819,0.46762055,66562.0,66561.0,1.299266]
[1722410107997,0.57762434,66562.0,66561.0,1.299266]
[1722410109963,0.57762434,66562.0,66561.0,0.99879]
[1722410110188,0.57762434,66562.0,66561.0,0.397838]
[1722410110421,0.57762434,66562.0,66561.0,0.105]
[1722410110623,0.57762434,66562.0,66561.0,0.005]
[1722410110801,1.1266775,66562.0,66561.0,0.005]
[1722410110972,1.1266775,66562.0,66557.0,0.250247]
[1722410110973,0.150238,66561.0,66557.0,0.250247]
[1722410111178,0.150238,66561.0,66557.0,0.1]
[1722410111179,0.15231853,66558.0,66557.0,0.1]
[1722410111347,0.57606531,66558.0,66557.0,0.250247]
[1722410112366,0.4668383,66558.0,66557.0,0.550741]
[1722410112606,0.72885779,66558.0,66557.0,0.550741]
[1722410114382,0.72885779,66558.0,66557.0,0.551741]
[1722410114797,0.09917716,66562.0,66560.0,0.15024]
[1722410115041,0.57653495,66561.0,66560.0,0.15024]
[1722410118437,0.09917716,66562.0,66561.0,0.150238]
[1722410118648,0.67572737,66562.0,66561.0,0.150238]
[1722410120821,0.60038021,66562.0,66561.0,0.150238]
[1722410122015,0.60032554,66562.0,66561.0,0.150238]
[1722410122393,0.60032554,66562.0,66561.0,0.149838]
[1722410123395,0.60032554,66562.0,66561.0,0.450314]
[1722410123593,0.60032554,66562.0,66561.0,0.587414]
[1722410124765,0.57732554,66562.0,66561.0,0.587414]
[1722410124970,0.57700863,66562.0,66561.0,0.587414]
[1722410125535,0.00051309,66562.0,66561.0,0.587414]
[1722410125742,0.22049119,66562.0,66561.0,0.587414]
[1722410125964,0.57733871,66562.0,66561.0,0.587414]
[1722410129211,0.46734967,66562.0,66561.0,0.587414]
[1722410129432,0.57715096,66562.0,66561.0,0.587414]
[1722410132833,0.57707735,66562.0,66561.0,0.587414]
[1722410136190,0.57707735,66562.0,66561.0,0.286938]
[1722410136438,0.15024,66560.0,66559.0,0.00031689]
[1722410136610,0.086,66559.0,66558.0,0.00031689]
[1722410136819,0.19563194,66559.0,66558.0,0.00031689]
[1722410136952,0.13263194,66559.0,66558.0,0.15056089]
[1722410137157,0.13263194,66559.0,66558.0,0.550733]
[1722410137388,0.59949527,66559.0,66558.0,0.250244]
[1722410138208,0.59949527,66559.0,66558.0,0.387844]
[1722410138424,0.59949527,66559.0,66558.0,0.688333]
[1722410138617,0.59949527,66559.0,66558.0,0.689333]
[1722410138818,0.59949527,66559.0,66558.0,0.388844]
[1722410139184,0.59949527,66559.0,66558.0,0.252244]
[1722410139955,0.59926615,66559.0,66558.0,0.252244]
[1722410140781,0.57626615,66559.0,66558.0,0.992822]
[1722410140979,0.57626615,66559.0,66558.0,0.993822]
[1722410142184,0.57626615,66559.0,66558.0,0.990822]
[1722410142613,0.57626615,66559.0,66558.0,0.993822]
[1722410143487,0.00051309,66562.0,66561.0,0.450714]
[1722410143862,0.46735522,66562.0,66561.0,0.450714]
[1722410144070,0.57694136,66562.0,66561.0,0.75119]
[1722410147203,0.57718421,66562.0,66561.0,0.89049]
[1722410147431,0.26262924,66562.0,66561.0,1.290966]
[1722410147727,0.57718421,66562.0,66561.0,1.290966]
[1722410148040,0.57278421,66562.0,66561.0,1.290966]
[1722410148537,0.72507012,66562.0,66561.0,0.99049]
[1722410148726,0.57278421,66562.0,66561.0,0.99049]
[1722410149086,0.65992524,66568.0,66567.0,0.150224]
[1722410149287,0.60771652,66568.0,66567.0,0.150224]
[1722410149489,1.26764176,66568.0,66567.0,0.150224]
[1722410150437,1.26764176,66568.0,66565.0,0.300457]
[1722410150662,1.26764176,66567.0,66566.0,0.150226]
[1722410150940,1.26750971,66567.0,66566.0,0.150226]
[1722410151388,0.60758447,66567.0,66566.0,0.150226]
[1722410152143,0.60758447,66567.0,66563.0,0.150232]
[1722410152383,0.24973011,66566.0,66562.0,0.150234]
[1722410152585,0.07534716,66563.0,66561.0,0.2393]
[1722410152786,0.07534716,66563.0,66562.0,0.1015542]
[1722410153192,0.07534716,66563.0,66562.0,0.2517892]
[1722410153193,0.54218475,66563.0,66562.0,0.2517892]
[1722410153567,0.54218475,66563.0,66562.0,0.250235]
[1722410154387,0.54218476,66563.0,66562.0,0.2517892]
[1722410154811,0.54218476,66563.0,66562.0,0.250235]
[1722410154999,0.54218476,66563.0,66562.0,0.252235]
[1722410155613,0.54218476,66563.0,66562.0,0.253235]
[1722410156145,0.65116491,66563.0,66562.0,0.2542697]
[1722410156333,0.65116491,66563.0,66562.0,0.103]
[1722410156475,0.65116491,66563.0,66562.0,0.25431732]
[1722410157910,0.65113916,66563.0,66562.0,0.25431732]
[1722410158854,0.65113916,66563.0,66562.0,0.10408232]
[1722410159051,0.65113916,66563.0,66562.0,0.103]
[1722410159353,0.65113916,66563.0,66562.0,0.253235]
[1722410160107,0.65113916,66563.0,66562.0,0.103]
[1722410160515,0.80137216,66563.0,66562.0,0.103]
[1722410160764,0.88737216,66563.0,66562.0,0.103]
[1722410160910,0.91037216,66563.0,66562.0,0.103]
[1722410161114,0.76013916,66563.0,66562.0,0.103]
[1722410161314,0.18434716,66563.0,66562.0,0.103]
[1722410161516,0.91010596,66563.0,66562.0,0.003]
[1722410161924,0.89436848,66563.0,66562.0,0.003]
[1722410162122,2.31952025,66563.0,66562.0,0.003]
[1722410163240,2.01905325,66563.0,66562.0,0.003]
[1722410163466,1.94370609,66563.0,66562.0,0.003]
[1722410164230,2.24417309,66563.0,66562.0,0.003]
[1722410164552,1.94370609,66563.0,66562.0,0.003]
[1722410164751,2.08315934,66563.0,66562.0,0.003]
[1722410164983,1.94276493,66563.0,66562.0,0.003]
[1722410165131,2.0822182,66563.0,66562.0,0.003]
[1722410166112,2.24323193,66563.0,66562.0,0.003]
[1722410166313,2.38261246,66563.0,66562.0,0.003]
[1722410168610,2.90536978,66563.0,66562.0,0.003]
[1722410168937,2.60490278,66563.0,66562.0,0.003]
[1722410169546,2.82336149,66563.0,66562.0,0.003]
[1722410170019,3.59666698,66563.0,66562.0,0.003]
[1722410170679,3.60666698,66563.0,66562.0,0.003]
[1722410170894,3.59666698,66563.0,66562.0,0.003]
[1722410171284,2.82336149,66563.0,66562.0,0.003]
[1722410172202,2.822796,66563.0,66562.0,0.003]
[1722410172605,2.57612985,66563.0,66562.0,0.003]
[1722410172808,2.82285147,66563.0,66562.0,0.003]
[1722410175651,2.10921429,66563.0,66562.0,0.003]
[1722410175886,2.82272449,66563.0,66562.0,0.003]
[1722410176088,2.84166459,66563.0,66562.0,0.003]
[1722410176312,2.83166459,66563.0,66557.0,0.000913]
[1722410176522,1.275111,66558.0,66557.0,0.000913]
[1722410176712,3.0420172,66558.0,66557.0,0.000913]
[1722410176945,2.82010149,66558.0,66557.0,0.000913]
[1722410177495,2.82010149,66558.0,66557.0,0.002913]
[1722410177899,3.59041269,66558.0,66557.0,0.000913]
[1722410178147,3.58041269,66558.0,66557.0,0.000913]
[1722410178277,3.58041269,66558.0,66557.0,0.008913]
[1722410178477,3.59041269,66558.0,66557.0,0.008913]
[1722410178902,4.06159601,66558.0,66557.0,0.008913]
[1722410179078,3.91090169,66558.0,66557.0,0.000913]
[1722410179405,3.90990369,66558.0,66557.0,0.001913]
[1722410179778,3.90990369,66558.0,66557.0,0.000913]
[1722410180220,3.90990369,66558.0,66557.0,0.001913]
[1722410181453,4.43697855,66558.0,66557.0,0.002913]
[1722410181691,4.43597855,66558.0,66557.0,0.000913]
[1722410181918,1.382263,66555.0,66554.0,0.000913]
[1722410182119,2.10555928,66555.0,66554.0,0.000913]
[1722410182383,2.10555928,66555.0,66544.0,0.0013507]
[1722410182384,1.051918,66545.0,66544.0,0.0013507]
[1722410182636,2.76141049,66545.0,66544.0,0.0013507]
[1722410182849,2.76141049,66545.0,66543.0,3.941]
[1722410182850,0.751382,66544.0,66543.0,3.941]
[1722410183055,1.58486313,66544.0,66543.0,3.941]
[1722410183684,0.89775713,66544.0,66543.0,3.941]
[1722410183944,0.74748113,66544.0,66543.0,3.941]
[1722410184238,0.57384809,66544.0,66543.0,4.091278]
[1722410184375,0.57384809,66544.0,66543.0,4.391835]
[1722410184582,0.30216499,66552.0,66546.0,0.1409]
[1722410184761,0.72500442,66551.0,66550.0,0.0792]